[Event "*** Titled Tuesday Blitz"]
[Site "Chess.com"]
[Date "2019.12.03"]
[Round "5"]
[White "Azatic"]
[Black "Bad4life"]
[Result "1-0"]
[WhiteElo "2626"]
[BlackElo "2398"]
[TimeControl "180+2"]
[EndTime "14:06:04 PST"]
[Termination "Azatic won by resignation"]

1. e4 {[%clk 0:03:01.9]} 1... c5 {[%clk 0:03:00.5]} 2. Nf3 {[%clk 0:03:02.3]}
2... d6 {[%clk 0:02:49]} 3. d4 {[%clk 0:03:01.3]} 3... cxd4 {[%clk 0:02:50.9]}
4. Nxd4 {[%clk 0:03:03.2]} 4... Nf6 {[%clk 0:02:52.4]} 5. Nc3 {[%clk 0:03:04.5]}
5... a6 {[%clk 0:02:53.9]} 6. Be3 {[%clk 0:03:04.1]} 6... e5 {[%clk 0:02:54.9]}
7. Nb3 {[%clk 0:03:04.4]} 7... Be7 {[%clk 0:02:55.6]} 8. f3 {[%clk 0:03:05.8]}
8... O-O {[%clk 0:02:56.9]} 9. Qd2 {[%clk 0:03:06.9]} 9... Be6 {[%clk
0:02:58.4]} 10. g4 {[%clk 0:03:08.1]} 10... d5 {[%clk 0:02:53.4]} 11. exd5
{[%clk 0:03:09.3]} 11... Nxd5 {[%clk 0:02:52.3]} 12. Nxd5 {[%clk 0:03:10.3]}
12... Qxd5 {[%clk 0:02:50.5]} 13. Qxd5 {[%clk 0:02:55.9]} 13... Bxd5 {[%clk
0:02:51.7]} 14. Kf2 {[%clk 0:02:57.4]} 14... Bh4+ {[%clk 0:02:52.5]} 15. Kg2
{[%clk 0:02:56.9]} 15... f5 {[%clk 0:02:53.7]} 16. Rd1 {[%clk 0:02:51.2]} 16...
Bc6 {[%clk 0:02:32]} 17. gxf5 {[%clk 0:02:43.9]} 17... Rxf5 {[%clk 0:02:29.2]}
18. Bc4+ {[%clk 0:02:44.7]} 18... Kh8 {[%clk 0:02:29.4]} 19. Bd5 {[%clk
0:02:45.8]} 19... h6 {[%clk 0:02:24]} 20. Na5 {[%clk 0:02:39.7]} 20... e4 {[%clk
0:02:16.9]} 21. fxe4 {[%clk 0:02:33.6]} 21... Re5 {[%clk 0:02:00.7]} 22. Bf4
{[%clk 0:02:12.2]} 22... Rxe4 {[%clk 0:02:00.6]} 23. Bxe4 {[%clk 0:02:10.9]}
23... Bxe4+ {[%clk 0:02:01.5]} 24. Kh3 {[%clk 0:02:11.9]} 24... Bxh1 {[%clk
0:01:59.6]} 25. Kxh4 {[%clk 0:02:13.3]} 25... g5+ {[%clk 0:01:56.9]} 26. Kh3
{[%clk 0:02:06.9]} 26... Nc6 {[%clk 0:01:45.8]} 27. Rxh1 {[%clk 0:01:58.8]}
27... Nxa5 {[%clk 0:01:40.7]} 28. Be5+ {[%clk 0:01:58.1]} 28... Kg8 {[%clk
0:01:41.2]} 29. Rd1 {[%clk 0:01:50.7]} 29... Re8 {[%clk 0:01:40.1]} 30. Bc3
{[%clk 0:01:51.7]} 30... Nc6 {[%clk 0:01:38.9]} 31. Rd7 {[%clk 0:01:51.4]} 31...
Re7 {[%clk 0:01:36.5]} 32. Rd6 {[%clk 0:01:47.3]} 32... Re3+ {[%clk 0:01:34.5]}
33. Kg4 {[%clk 0:01:46]} 33... Re4+ {[%clk 0:01:30.7]} 34. Kf5 {[%clk
0:01:21.7]} 34... Rf4+ {[%clk 0:01:30.7]} 35. Kg6 {[%clk 0:01:09.3]} 35... Rf2
{[%clk 0:01:11.2]} 36. Rd7 {[%clk 0:01:07]} 36... g4 {[%clk 0:01:00.1]} 37. Rxb7
{[%clk 0:01:05]} 37... Rxc2 {[%clk 0:00:47.4]} 38. Rc7 {[%clk 0:01:01.6]} 38...
Kf8 {[%clk 0:00:20.7]} 39. Rxc6 {[%clk 0:01:00.5]} 39... Ke8 {[%clk 0:00:21.4]}
40. Rc4 {[%clk 0:00:57.9]} 40... Rg2 {[%clk 0:00:16]} 41. Kxh6 {[%clk
0:00:45.9]} 41... Rxh2+ {[%clk 0:00:15.2]} 42. Kg5 {[%clk 0:00:47]} 42... g3
{[%clk 0:00:16.8]} 43. Rg4 {[%clk 0:00:42]} 43... g2 {[%clk 0:00:17.7]} 44. Be5
{[%clk 0:00:43.2]} 44... Rh7 {[%clk 0:00:03.9]} 45. Rxg2 {[%clk 0:00:43.3]}
45... Rb7 {[%clk 0:00:05.4]} 46. Kf5 {[%clk 0:00:41.3]} 46... Rb5 {[%clk
0:00:06]} 47. Ke6 {[%clk 0:00:41.2]} 1-0

[Event "*** Titled Tuesday Blitz"]
[Site "Chess.com"]
[Date "2019.12.03"]
[Round "5"]
[White "kleopl"]
[Black "Perecke"]
[Result "0-1"]
[WhiteElo "2482"]
[BlackElo "2168"]
[TimeControl "180+2"]
[EndTime "14:06:06 PST"]
[Termination "Perecke won by resignation"]

1. c4 {[%clk 0:03:01.9]} 1... e5 {[%clk 0:02:53.8]} 2. Nc3 {[%clk 0:03:02.4]}
2... Nf6 {[%clk 0:02:55.3]} 3. Nf3 {[%clk 0:03:03.4]} 3... Nc6 {[%clk 0:02:56]}
4. e4 {[%clk 0:03:04.6]} 4... Bc5 {[%clk 0:02:53.7]} 5. Nxe5 {[%clk 0:03:05.4]}
5... Nxe5 {[%clk 0:02:49.7]} 6. d4 {[%clk 0:03:06.1]} 6... Bb4 {[%clk
0:02:42.7]} 7. dxe5 {[%clk 0:03:07.1]} 7... Nxe4 {[%clk 0:02:44]} 8. Qf3 {[%clk
0:03:08.2]} 8... Nxc3 {[%clk 0:02:44]} 9. bxc3 {[%clk 0:03:10.1]} 9... Bc5
{[%clk 0:02:43.7]} 10. Qg3 {[%clk 0:03:10.8]} 10... g6 {[%clk 0:02:34.2]} 11.
Bh6 {[%clk 0:03:06.5]} 11... b6 {[%clk 0:02:33.8]} 12. Be2 {[%clk 0:02:56.4]}
12... Bb7 {[%clk 0:02:35.1]} 13. O-O {[%clk 0:02:52.3]} 13... Be7 {[%clk
0:02:32.2]} 14. a4 {[%clk 0:02:47.8]} 14... Bf8 {[%clk 0:02:31.2]} 15. Bf4
{[%clk 0:02:46.4]} 15... Be7 {[%clk 0:02:27.3]} 16. Rfd1 {[%clk 0:02:15.3]}
16... O-O {[%clk 0:02:12.6]} 17. Bg4 {[%clk 0:02:15.1]} 17... Bc6 {[%clk
0:02:03.3]} 18. e6 {[%clk 0:02:14.3]} 18... d6 {[%clk 0:01:53.4]} 19. exf7+
{[%clk 0:02:13.4]} 19... Kxf7 {[%clk 0:01:53.5]} 20. Bh6 {[%clk 0:02:07.7]}
20... Re8 {[%clk 0:01:49.4]} 21. a5 {[%clk 0:01:33.3]} 21... Bf6 {[%clk
0:01:23.7]} 22. Qh3 {[%clk 0:01:27.3]} 22... Bg7 {[%clk 0:01:01]} 23. Rd3 {[%clk
0:01:05.6]} 23... Bxh6 {[%clk 0:00:37.4]} 24. Qxh6 {[%clk 0:01:05.3]} 24... Kg8
{[%clk 0:00:38.2]} 25. Rh3 {[%clk 0:00:53.5]} 25... Qe7 {[%clk 0:00:37.7]} 26.
Be6+ {[%clk 0:00:25]} 26... Qxe6 {[%clk 0:00:29.7]} 27. Qxh7+ {[%clk 0:00:25.9]}
27... Kf8 {[%clk 0:00:30.9]} 28. Qh6+ {[%clk 0:00:22.5]} 28... Kf7 {[%clk
0:00:20.2]} 29. Qh7+ {[%clk 0:00:15.8]} 29... Kf8 {[%clk 0:00:18.3]} 30. Qh8+
{[%clk 0:00:13.4]} 30... Ke7 {[%clk 0:00:18.9]} 31. Qh4+ {[%clk 0:00:12.5]}
31... Kd7 {[%clk 0:00:19.1]} 32. f4 {[%clk 0:00:12.7]} 32... Qe2 {[%clk
0:00:12.5]} 33. Qg5 {[%clk 0:00:11]} 33... Re7 {[%clk 0:00:09.5]} 34. Qxg6
{[%clk 0:00:11.1]} 34... Rae8 {[%clk 0:00:10.3]} 35. Rf1 {[%clk 0:00:11.3]}
35... Qd2 {[%clk 0:00:06.8]} 36. Rg3 {[%clk 0:00:11.6]} 36... Re1 {[%clk
0:00:06.4]} 37. Qg4+ {[%clk 0:00:10.3]} 37... Kd8 {[%clk 0:00:06.1]} 38. Qg5+
{[%clk 0:00:06.1]} 38... Kc8 {[%clk 0:00:07.4]} 39. Qg4+ {[%clk 0:00:07]} 39...
Kb8 {[%clk 0:00:07.9]} 40. Rf3 {[%clk 0:00:08.2]} 40... Bxf3 {[%clk 0:00:07.9]}
41. Qxf3 {[%clk 0:00:09.6]} 41... Rxf1+ {[%clk 0:00:08.8]} 42. Qxf1 {[%clk
0:00:10.9]} 42... Re1 {[%clk 0:00:10.7]} 0-1

[Event "*** Titled Tuesday Blitz"]
[Site "Chess.com"]
[Date "2019.12.03"]
[Round "5"]
[White "Kimster98"]
[Black "boasovietica"]
[Result "1-0"]
[WhiteElo "2564"]
[BlackElo "2389"]
[TimeControl "180+2"]
[EndTime "14:06:11 PST"]
[Termination "Kimster98 won by resignation"]

1. Nf3 {[%clk 0:03:01.9]} 1... c5 {[%clk 0:03:00.1]} 2. c4 {[%clk 0:03:02.2]}
2... Nc6 {[%clk 0:02:59.2]} 3. Nc3 {[%clk 0:03:00.9]} 3... e5 {[%clk 0:02:59.8]}
4. e3 {[%clk 0:02:52.7]} 4... Nf6 {[%clk 0:03:00.1]} 5. d4 {[%clk 0:02:47.2]}
5... cxd4 {[%clk 0:02:58.3]} 6. exd4 {[%clk 0:02:41.2]} 6... e4 {[%clk
0:02:58.1]} 7. Ne5 {[%clk 0:02:30.8]} 7... Bb4 {[%clk 0:02:46]} 8. Be2 {[%clk
0:02:24.8]} 8... Qa5 {[%clk 0:02:46.3]} 9. Bd2 {[%clk 0:02:11]} 9... Nxd4 {[%clk
0:02:16.6]} 10. a3 {[%clk 0:02:04.5]} 10... Nxe2 {[%clk 0:02:06.3]} 11. axb4
{[%clk 0:01:59.9]} 11... Qxe5 {[%clk 0:02:05.8]} 12. Qxe2 {[%clk 0:02:00.9]}
12... O-O {[%clk 0:02:02.2]} 13. Be3 {[%clk 0:01:53.1]} 13... b6 {[%clk
0:01:48.3]} 14. Qd2 {[%clk 0:01:42.5]} 14... Bb7 {[%clk 0:01:38.7]} 15. Rd1
{[%clk 0:01:29.8]} 15... Rac8 {[%clk 0:01:26.8]} 16. Qd4 {[%clk 0:01:18.5]}
16... Qe6 {[%clk 0:01:22]} 17. b3 {[%clk 0:01:16.1]} 17... Qg4 {[%clk
0:00:59.2]} 18. O-O {[%clk 0:00:59.2]} 18... Qh5 {[%clk 0:00:54.3]} 19. h3
{[%clk 0:00:58.4]} 19... Rfe8 {[%clk 0:00:50.7]} 20. Nb5 {[%clk 0:00:56.4]}
20... Re6 {[%clk 0:00:37.8]} 21. Nxa7 {[%clk 0:00:47.4]} 21... Rce8 {[%clk
0:00:34.7]} 22. Nb5 {[%clk 0:00:48.1]} 22... Bc6 {[%clk 0:00:34.2]} 23. Nc7
{[%clk 0:00:48]} 23... h6 {[%clk 0:00:29.7]} 24. b5 {[%clk 0:00:42.7]} 24... Bb7
{[%clk 0:00:26.2]} 25. Nxe8 {[%clk 0:00:42.3]} 25... Rxe8 {[%clk 0:00:24.5]} 26.
Qxb6 {[%clk 0:00:41.5]} 26... Bc8 {[%clk 0:00:25.8]} 27. Qc7 {[%clk 0:00:37.6]}
27... d5 {[%clk 0:00:23.2]} 28. b6 {[%clk 0:00:36.4]} 28... Kh7 {[%clk
0:00:13.4]} 29. b7 {[%clk 0:00:27]} 29... Bxb7 {[%clk 0:00:14.5]} 30. Qxb7
{[%clk 0:00:28.2]} 30... Re5 {[%clk 0:00:14.9]} 31. cxd5 {[%clk 0:00:23.4]}
31... Qg6 {[%clk 0:00:15.4]} 32. d6 {[%clk 0:00:19.8]} 32... Rh5 {[%clk
0:00:15.6]} 33. Qc8 {[%clk 0:00:19.3]} 33... Nd5 {[%clk 0:00:07.8]} 34. Rxd5
{[%clk 0:00:09.9]} 34... Rxd5 {[%clk 0:00:08.2]} 35. Bf4 {[%clk 0:00:08.7]}
35... Qf6 {[%clk 0:00:07.8]} 36. Bg3 {[%clk 0:00:09]} 36... h5 {[%clk
0:00:07.3]} 37. h4 {[%clk 0:00:09]} 37... Qd4 {[%clk 0:00:06.3]} 38. Qc7 {[%clk
0:00:07.8]} 38... e3 {[%clk 0:00:06.5]} 39. fxe3 {[%clk 0:00:08.9]} 39... Qxe3+
{[%clk 0:00:07.6]} 40. Kh2 {[%clk 0:00:10.4]} 40... f6 {[%clk 0:00:08.5]} 41. d7
{[%clk 0:00:11.2]} 41... Rd3 {[%clk 0:00:09]} 42. d8=Q {[%clk 0:00:11.2]} 1-0

[Event "*** Titled Tuesday Blitz"]
[Site "Chess.com"]
[Date "2019.12.03"]
[Round "5"]
[White "andrzej"]
[Black "RitvarsReimanis"]
[Result "1/2-1/2"]
[WhiteElo "2380"]
[BlackElo "2559"]
[TimeControl "180+2"]
[EndTime "14:06:11 PST"]
[Termination "Game drawn by repetition"]

1. d4 {[%clk 0:03:01.7]} 1... Nf6 {[%clk 0:03:00.6]} 2. c4 {[%clk 0:03:02.5]}
2... e6 {[%clk 0:03:01.5]} 3. Nf3 {[%clk 0:03:03.5]} 3... d5 {[%clk 0:03:01.3]}
4. g3 {[%clk 0:03:04.3]} 4... Be7 {[%clk 0:03:02.6]} 5. Bg2 {[%clk 0:03:05.9]}
5... O-O {[%clk 0:03:04.2]} 6. O-O {[%clk 0:03:07.6]} 6... dxc4 {[%clk
0:03:05.8]} 7. Ne5 {[%clk 0:03:08.5]} 7... Nc6 {[%clk 0:03:06.4]} 8. Bxc6 {[%clk
0:03:09.7]} 8... bxc6 {[%clk 0:03:08.3]} 9. Nxc6 {[%clk 0:03:11.2]} 9... Qd7
{[%clk 0:03:09.9]} 10. Nxe7+ {[%clk 0:03:05.9]} 10... Qxe7 {[%clk 0:03:11.8]}
11. Qa4 {[%clk 0:03:05.9]} 11... c5 {[%clk 0:03:10.9]} 12. Qxc4 {[%clk
0:03:05.7]} 12... cxd4 {[%clk 0:03:11.7]} 13. Qxd4 {[%clk 0:03:06.9]} 13... e5
{[%clk 0:03:13.4]} 14. Qh4 {[%clk 0:03:07.2]} 14... h6 {[%clk 0:03:12.2]} 15.
Nc3 {[%clk 0:03:07.6]} 15... Rb8 {[%clk 0:03:09.9]} 16. e4 {[%clk 0:03:06.4]}
16... Rd8 {[%clk 0:02:56.9]} 17. f3 {[%clk 0:03:00.6]} 17... Ba6 {[%clk
0:02:54.6]} 18. Re1 {[%clk 0:02:26.7]} 18... Rd3 {[%clk 0:02:49.9]} 19. Kg2
{[%clk 0:02:14.9]} 19... Qc5 {[%clk 0:02:28.6]} 20. g4 {[%clk 0:02:07.4]} 20...
Rxb2+ {[%clk 0:02:04.3]} 21. Bxb2 {[%clk 0:01:55.6]} 21... Rd2+ {[%clk
0:02:05.5]} 22. Kh1 {[%clk 0:01:53.8]} 22... Rxb2 {[%clk 0:02:06.3]} 23. Rac1
{[%clk 0:01:42.1]} 23... Qd4 {[%clk 0:02:01.5]} 24. g5 {[%clk 0:00:57.5]} 24...
Qd2 {[%clk 0:01:56.2]} 25. Qg3 {[%clk 0:00:51.6]} 25... hxg5 {[%clk 0:01:40]}
26. Red1 {[%clk 0:00:37.1]} 26... Qf2 {[%clk 0:01:24.4]} 27. Qh3 {[%clk
0:00:29.8]} 27... Qh4 {[%clk 0:01:16.5]} 28. Rd8+ {[%clk 0:00:15.4]} 28... Kh7
{[%clk 0:01:17.6]} 29. Qxh4+ {[%clk 0:00:17.3]} 29... gxh4 {[%clk 0:01:17.9]}
30. Ra8 {[%clk 0:00:13.9]} 30... Bc4 {[%clk 0:00:59.4]} 31. Rxa7 {[%clk
0:00:13.5]} 31... Be6 {[%clk 0:01:00]} 32. a4 {[%clk 0:00:13.3]} 32... Nh5
{[%clk 0:00:56.4]} 33. a5 {[%clk 0:00:11.5]} 33... Nf4 {[%clk 0:00:51.5]} 34. a6
{[%clk 0:00:11.8]} 34... Nd3 {[%clk 0:00:52.7]} 35. Ra1 {[%clk 0:00:08.6]} 35...
Bh3 {[%clk 0:00:31.3]} 36. Rb7 {[%clk 0:00:07.5]} 36... Rc2 {[%clk 0:00:30]} 37.
a7 {[%clk 0:00:07.8]} 37... Bg2+ {[%clk 0:00:15]} 38. Kg1 {[%clk 0:00:09.1]}
38... Nf4 {[%clk 0:00:16.9]} 39. h3 {[%clk 0:00:10.7]} 39... Nxh3+ {[%clk
0:00:17.4]} 40. Kh2 {[%clk 0:00:12.3]} 40... Bf1+ {[%clk 0:00:18.9]} 41. Kh1
{[%clk 0:00:10.9]} 41... Bg2+ {[%clk 0:00:20.3]} 42. Kh2 {[%clk 0:00:12.4]}
42... Bf1+ {[%clk 0:00:18.7]} 43. Kh1 {[%clk 0:00:13.8]} 43... Bg2+ {[%clk
0:00:16.7]} 44. Kh2 {[%clk 0:00:15.3]} 1/2-1/2

[Event "*** Titled Tuesday Blitz"]
[Site "Chess.com"]
[Date "2019.12.03"]
[Round "5"]
[White "goldenspine"]
[Black "M1711"]
[Result "0-1"]
[WhiteElo "2323"]
[BlackElo "2522"]
[TimeControl "180+2"]
[EndTime "14:06:15 PST"]
[Termination "M1711 won by checkmate"]

1. e4 {[%clk 0:03:01.9]} 1... e5 {[%clk 0:02:58.9]} 2. Nf3 {[%clk 0:03:01.7]}
2... d5 {[%clk 0:02:58.4]} 3. exd5 {[%clk 0:03:00.5]} 3... e4 {[%clk 0:02:58.2]}
4. Ne5 {[%clk 0:02:55.8]} 4... Qxd5 {[%clk 0:02:59]} 5. d4 {[%clk 0:02:55.9]}
5... exd3 {[%clk 0:02:58.7]} 6. Nxd3 {[%clk 0:02:53.5]} 6... Nf6 {[%clk
0:02:57.2]} 7. Nc3 {[%clk 0:02:52.9]} 7... Qf5 {[%clk 0:02:55.2]} 8. Bf4 {[%clk
0:02:34.3]} 8... Na6 {[%clk 0:02:28.6]} 9. Qe2+ {[%clk 0:02:19]} 9... Be6 {[%clk
0:02:22.3]} 10. g3 {[%clk 0:01:47.2]} 10... O-O-O {[%clk 0:02:04.4]} 11. Bg2
{[%clk 0:01:46.3]} 11... Bd6 {[%clk 0:01:39.8]} 12. O-O-O {[%clk 0:01:29.9]}
12... Bc4 {[%clk 0:01:28]} 13. Qf3 {[%clk 0:01:16]} 13... c6 {[%clk 0:01:20.4]}
14. h4 {[%clk 0:00:59.1]} 14... Bxf4+ {[%clk 0:01:13.5]} 15. Nxf4 {[%clk
0:00:58.3]} 15... Kb8 {[%clk 0:01:13.6]} 16. b3 {[%clk 0:00:47.5]} 16... Be6
{[%clk 0:00:39.7]} 17. Bh3 {[%clk 0:00:47.5]} 17... Ng4 {[%clk 0:00:38.4]} 18.
Rhe1 {[%clk 0:00:33.3]} 18... h5 {[%clk 0:00:36.2]} 19. Qe2 {[%clk 0:00:32.3]}
19... Bc8 {[%clk 0:00:27.3]} 20. Rxd8 {[%clk 0:00:23.3]} 20... Rxd8 {[%clk
0:00:27.9]} 21. Qe7 {[%clk 0:00:24.9]} 21... Qa5 {[%clk 0:00:16.5]} 22. Kb2
{[%clk 0:00:24.6]} 22... Qc7 {[%clk 0:00:13.5]} 23. Qxc7+ {[%clk 0:00:23.9]}
23... Nxc7 {[%clk 0:00:13]} 24. Re7 {[%clk 0:00:25.3]} 24... Rf8 {[%clk
0:00:06.3]} 25. Nxh5 {[%clk 0:00:26.2]} 25... Nxf2 {[%clk 0:00:04.5]} 26. Bxc8
{[%clk 0:00:27.4]} 26... Kxc8 {[%clk 0:00:06.4]} 27. Nxg7 {[%clk 0:00:28]} 27...
Ng4 {[%clk 0:00:05.8]} 28. Nf5 {[%clk 0:00:28.9]} 28... Kd8 {[%clk 0:00:04.7]}
29. Re1 {[%clk 0:00:22.9]} 29... Nf6 {[%clk 0:00:05.3]} 30. Ne4 {[%clk
0:00:23.7]} 30... Nfd5 {[%clk 0:00:02.8]} 31. Ned6 {[%clk 0:00:23.1]} 31... Kd7
{[%clk 0:00:03]} 32. Nxb7 {[%clk 0:00:23.6]} 32... Ne6 {[%clk 0:00:03.8]} 33. c4
{[%clk 0:00:23.7]} 33... Nf6 {[%clk 0:00:04.2]} 34. Rd1+ {[%clk 0:00:21.3]}
34... Kc7 {[%clk 0:00:05.1]} 35. Nbd6 {[%clk 0:00:22.1]} 35... Nh5 {[%clk
0:00:03.4]} 36. Re1 {[%clk 0:00:22.4]} 36... a5 {[%clk 0:00:03.8]} 37. Ne4
{[%clk 0:00:23.1]} 37... Rg8 {[%clk 0:00:04.6]} 38. Nf6 {[%clk 0:00:21]} 38...
Nxf6 {[%clk 0:00:05.6]} 39. Kc3 {[%clk 0:00:19.2]} 39... Nh5 {[%clk 0:00:06.9]}
40. Rg1 {[%clk 0:00:20]} 40... Rg4 {[%clk 0:00:07.4]} 41. Nh6 {[%clk 0:00:19.6]}
41... Rxg3+ {[%clk 0:00:03.9]} 42. Rxg3 {[%clk 0:00:19.5]} 42... Nxg3 {[%clk
0:00:05.8]} 43. Nxf7 {[%clk 0:00:20.9]} 43... Ng7 {[%clk 0:00:06.6]} 44. Kd4
{[%clk 0:00:21.2]} 44... N3f5+ {[%clk 0:00:05.6]} 45. Kc5 {[%clk 0:00:21.1]}
45... Ne6# {[%clk 0:00:06.7]} 0-1

[Event "*** Titled Tuesday Blitz"]
[Site "Chess.com"]
[Date "2019.12.03"]
[Round "5"]
[White "Filip_Covic"]
[Black "IgorBjelobrk"]
[Result "1-0"]
[WhiteElo "2469"]
[BlackElo "2670"]
[TimeControl "180+2"]
[EndTime "14:06:16 PST"]
[Termination "Filip_Covic won by resignation"]

1. e4 {[%clk 0:02:57]} 1... e5 {[%clk 0:02:59.7]} 2. Nf3 {[%clk 0:02:55.3]} 2...
Nc6 {[%clk 0:03:00.7]} 3. Bb5 {[%clk 0:02:54.2]} 3... a6 {[%clk 0:03:01.4]} 4.
Ba4 {[%clk 0:02:53.2]} 4... Nf6 {[%clk 0:03:01.9]} 5. O-O {[%clk 0:02:53]} 5...
Be7 {[%clk 0:03:00.6]} 6. Re1 {[%clk 0:02:50.7]} 6... b5 {[%clk 0:03:00.7]} 7.
Bb3 {[%clk 0:02:50.8]} 7... d6 {[%clk 0:03:01.5]} 8. h3 {[%clk 0:02:48.8]} 8...
O-O {[%clk 0:03:02]} 9. c3 {[%clk 0:02:49.1]} 9... Nb8 {[%clk 0:03:02.9]} 10. d4
{[%clk 0:02:49]} 10... Nbd7 {[%clk 0:03:03.8]} 11. a4 {[%clk 0:02:44.9]} 11...
Bb7 {[%clk 0:03:04.1]} 12. Nbd2 {[%clk 0:02:43.8]} 12... c5 {[%clk 0:03:01.6]}
13. d5 {[%clk 0:02:37]} 13... c4 {[%clk 0:03:02.7]} 14. Bc2 {[%clk 0:02:36]}
14... Nc5 {[%clk 0:03:01.7]} 15. Nf1 {[%clk 0:02:32.4]} 15... Qc7 {[%clk
0:03:02]} 16. Ng3 {[%clk 0:02:30.7]} 16... Rfb8 {[%clk 0:03:02.2]} 17. Nf5
{[%clk 0:02:23.1]} 17... Bf8 {[%clk 0:03:02.8]} 18. Bg5 {[%clk 0:02:20]} 18...
Ne8 {[%clk 0:03:03.2]} 19. Nh2 {[%clk 0:02:12]} 19... Bc8 {[%clk 0:03:03.7]} 20.
Ng4 {[%clk 0:02:09.1]} 20... Kh8 {[%clk 0:03:03]} 21. Qf3 {[%clk 0:02:06.1]}
21... bxa4 {[%clk 0:03:00.4]} 22. Qg3 {[%clk 0:01:52.6]} 22... Rxb2 {[%clk
0:02:54.9]} 23. Rec1 {[%clk 0:01:40.1]} 23... Nb3 {[%clk 0:02:51.6]} 24. Bxb3
{[%clk 0:01:40.5]} 24... axb3 {[%clk 0:02:51.8]} 25. Qh4 {[%clk 0:00:31.3]}
25... Bxf5 {[%clk 0:02:39.2]} 26. exf5 {[%clk 0:00:30.3]} 26... f6 {[%clk
0:02:40.4]} 27. Be3 {[%clk 0:00:29.5]} 27... Qb7 {[%clk 0:02:36.8]} 28. Rd1
{[%clk 0:00:24.9]} 28... Rc2 {[%clk 0:02:35.5]} 29. Bd2 {[%clk 0:00:23.4]} 29...
Qxd5 {[%clk 0:02:29.2]} 30. Ne3 {[%clk 0:00:22.4]} 30... Qd3 {[%clk 0:02:14.8]}
31. Be1 {[%clk 0:00:23.3]} 31... Qe2 {[%clk 0:02:07.7]} 32. Nxc2 {[%clk
0:00:22]} 32... Qxc2 {[%clk 0:01:57.6]} 33. Qxc4 {[%clk 0:00:22.2]} 33... Qxf5
{[%clk 0:01:48.7]} 34. Qf7 {[%clk 0:00:19.3]} 34... Nc7 {[%clk 0:01:24.5]} 35.
Qxc7 {[%clk 0:00:19.4]} 35... Qe4 {[%clk 0:00:45.7]} 36. Rab1 {[%clk 0:00:17.6]}
36... Qa4 {[%clk 0:00:35]} 37. Qb6 {[%clk 0:00:16.9]} 37... Rc8 {[%clk 0:00:26]}
38. Qxb3 {[%clk 0:00:17.4]} 38... Qc6 {[%clk 0:00:26.5]} 39. Qb7 {[%clk
0:00:17.1]} 39... Qc4 {[%clk 0:00:26.9]} 40. Rb4 {[%clk 0:00:16]} 40... Qc6
{[%clk 0:00:26.4]} 41. Qxc6 {[%clk 0:00:16]} 41... Rxc6 {[%clk 0:00:28.3]} 42.
Rb8 {[%clk 0:00:16.7]} 42... Kg8 {[%clk 0:00:29.7]} 43. Rdb1 {[%clk 0:00:17.4]}
43... Kf7 {[%clk 0:00:27.8]} 44. R1b7+ {[%clk 0:00:17.8]} 44... Be7 {[%clk
0:00:28.9]} 45. Ra8 {[%clk 0:00:16.9]} 45... d5 {[%clk 0:00:28.9]} 46. Raa7
{[%clk 0:00:17.7]} 46... Re6 {[%clk 0:00:29.8]} 47. c4 {[%clk 0:00:18.7]} 47...
d4 {[%clk 0:00:27.2]} 48. Bb4 {[%clk 0:00:20]} 1-0